bitfinex-derivatives/quotes_BTCF0:USTF0_20241104
["timestamp","ask_amount","ask_price","bid_price","bid_amount"]
[1730732566193,0.28563962,68453.0,68452.0,0.001]
[1730732566388,0.073091,68445.0,68444.0,0.00219114]
[1730732566693,0.073091,68445.0,68432.0,0.0349]
[1730732566694,0.57135762,68445.0,68435.0,0.073101]
[1730732566894,0.073092,68444.0,68435.0,0.073101]
[1730732567193,0.073096,68441.0,68435.0,0.073101]
[1730732567402,0.64444862,68445.0,68432.0,0.0349]
[1730732567699,0.3608,68445.0,68432.0,0.0349]
[1730732567890,0.433891,68445.0,68440.0,0.073096]
[1730732568288,0.21055762,68451.0,68444.0,0.3608]
[1730732568692,0.073087,68450.0,68437.0,0.3608]
[1730732568896,0.073087,68450.0,68445.0,0.073091]
[1730732569485,0.14043936,68448.0,68445.0,0.073091]
[1730732569688,0.073084,68452.0,68445.0,0.073091]
[1730732570106,0.14043936,68453.0,68444.0,0.004]
[1730732570299,0.3608,68454.0,68444.0,0.004]
[1730732570300,0.14043936,68448.0,68444.0,0.004]
[1730732570503,0.14043936,68448.0,68445.0,0.003]
[1730732570705,0.36934,68473.0,68447.0,0.50123936]
[1730732571005,0.00219173,68475.0,68462.0,0.3608]
[1730732571006,0.03579173,68475.0,68462.0,0.3608]
[1730732571202,0.03579173,68475.0,68462.0,0.433872]
[1730732571392,0.073061,68474.0,68463.0,0.073072]
[1730732571596,0.03579173,68475.0,68472.0,0.073062]
[1730732571898,0.03579173,68475.0,68462.0,0.3608]
[1730732571899,0.085061,68473.0,68468.0,0.073065]
[1730732572091,0.085061,68473.0,68470.0,0.073064]
[1730732572487,0.085061,68473.0,68468.0,0.073065]
[1730732573006,0.095061,68473.0,68468.0,0.074065]
[1730732573203,0.022,68473.0,68472.0,0.073062]
[1730732573704,0.015,68473.0,68472.0,0.073062]
[1730732574004,0.003,68473.0,68472.0,0.074062]
[1730732574800,0.012,68473.0,68472.0,0.074062]
[1730732575298,0.009,68473.0,68472.0,0.074062]
[1730732575502,0.014,68473.0,68472.0,0.074062]
[1730732575805,0.014,68473.0,68472.0,0.073062]
[1730732575806,0.009,68473.0,68472.0,0.073062]
[1730732576005,0.004,68473.0,68472.0,0.073062]
[1730732576206,0.004,68473.0,68469.0,0.3608]
[1730732576501,0.073064,68470.0,68469.0,0.3608]
[1730732577297,0.073072,68464.0,68460.0,0.073075]
[1730732577511,0.073082,68454.0,68450.0,0.07527621]
[1730732577807,0.3608,68461.0,68450.0,0.00219121]
[1730732578009,0.05095825,68460.0,68450.0,0.00219121]
[1730732578300,0.073082,68454.0,68450.0,0.00219121]
[1730732578504,0.38150474,68461.0,68450.0,0.00219121]
[1730732578505,0.05095825,68453.0,68450.0,0.00219121]
[1730732578693,0.38150474,68461.0,68450.0,0.00219121]
[1730732578891,0.073083,68453.0,68450.0,0.00219121]
[1730732579090,0.05088257,68452.0,68450.0,0.01619121]
[1730732579291,0.073084,68452.0,68450.0,0.01619121]
[1730732580002,0.073084,68452.0,68450.0,0.02319121]
[1730732580195,0.001,68453.0,68450.0,0.02319121]
[1730732580395,0.05091823,68452.0,68450.0,0.02319121]
[1730732580696,0.073085,68451.0,68450.0,0.02319121]
[1730732580895,0.12367442,68451.0,68450.0,0.01619121]
[1730732581495,0.12367442,68451.0,68450.0,0.00719121]
[1730732581896,0.05058942,68451.0,68450.0,0.438886]
[1730732582103,0.001,68452.0,68450.0,0.005]
[1730732582311,0.05077096,68451.0,68444.0,0.3608]
[1730732582514,0.073091,68445.0,68444.0,0.3608]
[1730732582695,0.073099,68438.0,68429.0,0.073107]
[1730732582899,0.073099,68438.0,68425.0,0.073112]
[1730732582900,0.073104,68433.0,68425.0,0.073112]
[1730732583105,0.073108,68429.0,68422.0,0.073115]
[1730732583411,0.073108,68429.0,68420.0,0.3608]
[1730732583799,0.073108,68429.0,68424.0,0.073113]
[1730732584409,0.073105,68432.0,68424.0,0.073113]
[1730732584604,0.073107,68431.0,68424.0,0.073113]
[1730732585122,0.073107,68431.0,68421.0,0.073117]
[1730732585301,0.073107,68431.0,68422.0,0.073115]
[1730732585501,0.38113621,68438.0,68422.0,0.073115]
[1730732585703,0.073108,68429.0,68422.0,0.073115]
[1730732585920,0.075108,68429.0,68428.0,0.03019192]
[1730732586214,0.002,68429.0,68428.0,0.39099192]
[1730732586415,0.3608,68451.0,68428.0,1.11539192]
[1730732586607,0.001,68431.0,68430.0,0.073107]
[1730732587112,0.001,68438.0,68431.0,0.073106]
[1730732587312,0.001,68438.0,68432.0,0.073104]
[1730732587616,0.074099,68438.0,68432.0,0.073104]
[1730732587815,0.074099,68438.0,68434.0,0.073103]
[1730732587816,0.001,68438.0,68434.0,0.073103]
[1730732588014,0.001,68438.0,68429.0,0.0364]
[1730732588209,0.001,68438.0,68435.0,0.073101]
[1730732588408,0.073093,68443.0,68436.0,0.0731]
[1730732588711,0.073093,68443.0,68430.0,0.014]
[1730732589013,0.073094,68442.0,68430.0,0.028]
[1730732589195,0.3608,68445.0,68442.0,0.073094]
[1730732589397,0.00219297,68452.0,68451.0,0.073085]
[1730732590509,0.073063,68472.0,68457.0,0.073078]
[1730732590811,0.00219173,68475.0,68457.0,0.073078]
[1730732590812,0.00219173,68475.0,68474.0,0.07306]
[1730732591200,0.07306,68474.0,68468.0,0.3608]
[1730732591411,0.00219173,68475.0,68474.0,0.07306]
[1730732591714,0.073062,68473.0,68470.0,0.073064]
[1730732591907,0.073062,68473.0,68468.0,0.3608]
[1730732592103,0.073063,68472.0,68469.0,0.073065]
[1730732592408,0.00219173,68475.0,68468.0,0.3608]
[1730732592607,0.00219173,68475.0,68474.0,0.07306]
[1730732592811,0.01219173,68475.0,68474.0,0.07406]
[1730732593008,0.01219173,68475.0,68474.0,0.43486]
[1730732593208,0.01219173,68475.0,68474.0,0.87298]
[1730732593413,0.01,68475.0,68474.0,0.87298]
[1730732593616,0.073041,68492.0,68490.0,0.073043]
[1730732594102,0.00112001,68496.0,68486.0,0.2105687]
[1730732594301,0.00112001,68496.0,68480.0,0.3608]
[1730732594302,0.02067098,68496.0,68495.0,0.073038]
[1730732594507,0.073035,68498.0,68495.0,0.073038]
[1730732594708,0.833035,68498.0,68495.0,0.073038]
[1730732594907,0.76,68498.0,68497.0,0.073036]
[1730732595117,0.0366,68513.0,68493.0,0.5713687]
[1730732595618,0.073025,68507.0,68494.0,0.073038]
[1730732595796,0.073025,68507.0,68500.0,0.073032]
[1730732596201,0.02333016,68512.0,68500.0,0.073032]
[1730732596504,0.3608,68501.0,68475.0,0.0079]
[1730732596704,0.073057,68478.0,68464.0,0.0068]
[1730732596903,0.073057,68478.0,68461.0,0.3687]
[1730732596904,0.2105687,68479.0,68467.0,0.073068]
[1730732597398,0.2105687,68479.0,68469.0,0.073064]
[1730732597816,0.2105687,68479.0,68478.0,0.014]
[1730732598306,0.2836237,68479.0,68478.0,0.014]
[1730732598504,0.2105687,68479.0,68466.0,0.073069]
[1730732598704,0.2105687,68479.0,68464.0,0.07307]
[1730732598909,0.073059,68475.0,68467.0,0.073067]
[1730732599207,0.073059,68475.0,68473.0,0.01619047]
[1730732600812,0.079059,68475.0,68473.0,0.01719047]
[1730732601007,0.07306,68474.0,68473.0,0.00319047]
[1730732601618,0.07306,68474.0,68473.0,0.00419047]
[1730732601922,0.073073,68462.0,68461.0,0.3608]
[1730732602100,0.006,68475.0,68461.0,0.3608]
[1730732602101,0.2105687,68468.0,68461.0,0.3608]
[1730732602404,0.006,68475.0,68467.0,0.3608]
[1730732602607,0.006,68475.0,68473.0,0.073061]
[1730732602909,0.006,68475.0,68467.0,0.3608]
[1730732602910,0.079059,68475.0,68467.0,0.3608]
[1730732603113,0.073061,68474.0,68467.0,0.3608]
[1730732603312,0.078061,68474.0,68473.0,0.001]
[1730732603816,0.078061,68474.0,68446.0,0.0079]
[1730732603817,0.073073,68462.0,68446.0,0.0079]
[1730732604114,1.3094887,68474.0,68434.0,0.3608]
[1730732604115,0.073095,68441.0,68434.0,0.3608]
[1730732604303,0.433895,68441.0,68426.0,0.04349037]
[1730732604507,0.433895,68441.0,68426.0,0.11660137]
[1730732604702,0.433895,68441.0,68426.0,0.04349037]
[1730732604703,0.073102,68436.0,68426.0,0.04349037]
[1730732605111,0.073102,68436.0,68426.0,0.11660137]
[1730732605706,0.833089,68448.0,68436.0,0.0731]
[1730732605913,0.073089,68447.0,68437.0,0.073099]
[1730732606102,0.07309,68446.0,68437.0,0.073099]
[1730732606410,0.76,68448.0,68430.0,0.3608]
[1730732606617,0.001,68441.0,68440.0,0.007]
[1730732607116,0.3681,68469.0,68450.0,0.073085]
[1730732607318,0.073065,68470.0,68465.0,0.3608]
[1730732608109,0.3608,68472.0,68465.0,0.3608]
[1730732608610,0.00519221,68466.0,68465.0,0.3608]
[1730732609210,0.00519221,68466.0,68465.0,0.43387]
[1730732609513,0.00519221,68466.0,68465.0,0.43587]
[1730732609709,0.00519221,68466.0,68465.0,0.3628]
[1730732610114,0.00519221,68466.0,68465.0,0.3608]
[1730732610313,0.00519221,68466.0,68465.0,0.001]
[1730732610521,0.00219221,68466.0,68465.0,0.001]
[1730732610720,0.07526121,68466.0,68465.0,0.001]
[1730732611020,0.43606121,68466.0,68465.0,0.001]
[1730732611212,0.43606121,68466.0,68457.0,0.073078]
[1730732611607,0.36299221,68466.0,68452.0,0.3608]
[1730732611808,0.36299221,68466.0,68436.0,0.0731]
[1730732611809,0.073078,68458.0,68451.0,0.073084]
[1730732612004,0.036,68457.0,68443.0,0.073093]
[1730732612216,0.073083,68453.0,68439.0,0.3608]
[1730732612413,0.073084,68452.0,68444.0,0.073092]
[1730732612913,0.073084,68452.0,68439.0,0.3608]
[1730732613113,0.3608,68453.0,68445.0,0.073091]
[1730732613311,0.3608,68453.0,68439.0,0.3608]
[1730732613516,0.3608,68453.0,68442.0,0.073094]
[1730732613517,0.073087,68449.0,68442.0,0.073094]
[1730732613708,0.001,68452.0,68444.0,0.007]
[1730732613913,0.073089,68448.0,68444.0,0.007]
[1730732614105,0.0376,68452.0,68444.0,0.007]
[1730732614312,0.073089,68447.0,68445.0,0.006]
[1730732614522,0.07309,68446.0,68445.0,0.006]
[1730732615013,0.073096,68440.0,68426.0,0.04349037]
[1730732615208,0.3608,68436.0,68426.0,0.04349037]
[1730732615920,0.07311,68427.0,68426.0,0.04349037]
[1730732616115,0.3608,68436.0,68426.0,0.04349037]
[1730732616116,0.073106,68431.0,68426.0,0.04349037]
[1730732616418,0.073107,68430.0,68426.0,0.04349037]
[1730732616614,0.073107,68430.0,68426.0,0.04549037]
[1730732617017,0.07311,68428.0,68426.0,0.04549037]
[1730732617310,0.76,68435.0,68426.0,0.05149037]
[1730732617518,0.074106,68431.0,68426.0,0.05349037]
[1730732617907,0.001,68431.0,68426.0,0.05349037]
[1730732618114,0.073107,68430.0,68426.0,0.05349037]
[1730732618513,0.073107,68430.0,68426.0,0.04549037]
[1730732618715,0.074107,68430.0,68426.0,0.04549037]
[1730732619018,0.074107,68430.0,68426.0,0.002]
[1730732619212,0.074107,68430.0,68423.0,0.073114]
[1730732619413,0.075107,68430.0,68423.0,0.073114]
[1730732620412,0.074107,68430.0,68423.0,0.073114]
[1730732620611,0.075107,68430.0,68423.0,0.081114]
[1730732620917,0.075107,68430.0,68427.0,0.3608]
[1730732621108,0.15831585,68486.0,68427.0,0.3608]
[1730732621109,0.3608,68458.0,68429.0,0.5713687]
[1730732621312,0.0073,68462.0,68444.0,0.3608]
[1730732621614,0.0215,68465.0,68444.0,0.3608]
[1730732621615,0.0358,68465.0,68461.0,0.3608]
[1730732623015,0.10887,68465.0,68461.0,0.3608]
[1730732623212,0.0073,68470.0,68461.0,0.3608]
[1730732623517,0.014,68462.0,68461.0,0.433873]
[1730732623718,0.014,68462.0,68461.0,0.6444417]
[1730732623915,0.014,68462.0,68461.0,1.0826417]
[1730732624809,0.0073,68470.0,68465.0,0.07307]
[1730732625010,0.0073,68470.0,68465.0,0.43387]
[1730732625720,0.0073,68470.0,68469.0,0.073065]
[1730732625921,0.3956,68489.0,68469.0,0.7545287]
[1730732626111,0.3956,68489.0,68477.0,0.073057]
[1730732626307,0.073055,68479.0,68477.0,0.073057]
[1730732626518,0.073056,68478.0,68477.0,0.073057]
[1730732627021,0.3956,68489.0,68477.0,0.073057]
[1730732627223,0.073052,68482.0,68477.0,0.073057]
[1730732627427,0.073057,68477.0,68476.0,0.3608]
[1730732627816,0.468645,68489.0,68477.0,0.001]
[1730732628215,0.073054,68480.0,68477.0,0.001]
[1730732629528,0.009,68482.0,68477.0,0.001]
[1730732629828,0.009,68482.0,68476.0,0.3608]
[1730732629829,0.003,68477.0,68476.0,0.3608]
[1730732630621,0.009,68482.0,68469.0,0.3608]
[1730732630622,0.2195687,68482.0,68469.0,0.3608]
[1730732630824,0.073064,68470.0,68469.0,0.3608]
[1730732631025,0.073064,68470.0,68465.0,0.3608]
[1730732632225,0.073064,68470.0,68465.0,0.3638]
[1730732632226,0.074064,68470.0,68465.0,0.3638]
[1730732633333,0.001,68470.0,68465.0,0.436869]
[1730732633623,0.001,68470.0,68466.0,0.073068]
[1730732633814,0.004,68470.0,68466.0,0.073068]
[1730732634126,0.006,68470.0,68465.0,0.3608]
[1730732634728,0.004,68470.0,68465.0,0.3608]
[1730732635027,0.008,68470.0,68465.0,0.3608]
[1730732635423,0.073066,68469.0,68465.0,0.3608]
[1730732637130,0.008,68470.0,68465.0,0.3608]
[1730732637325,0.0315,68468.0,68465.0,0.3608]
[1730732637719,0.104567,68468.0,68465.0,0.3608]
[1730732637916,0.073069,68466.0,68465.0,0.3608]
[1730732639231,0.073069,68466.0,68463.0,0.04349476]
[1730732639232,0.073071,68464.0,68463.0,0.04349476]
[1730732639524,0.073071,68464.0,68452.0,0.3608]
[1730732639525,0.073084,68452.0,68451.0,0.00219099]
[1730732640630,0.3608,68463.0,68455.0,0.07308]
[1730732641130,0.073073,68462.0,68456.0,0.073078]
[1730732641321,0.3608,68463.0,68456.0,0.073078]
[1730732641527,0.3608,68463.0,68454.0,0.3608]
[1730732641729,0.76112001,68467.0,68454.0,0.3608]
[1730732641730,0.073071,68464.0,68459.0,0.073076]
[1730732641921,0.073071,68464.0,68454.0,0.3608]
[1730732642126,0.073071,68464.0,68437.0,0.0068]
[1730732642127,0.43388,68455.0,68433.0,0.079903]
[1730732642340,0.073104,68433.0,68424.0,0.073113]
[1730732642634,0.073106,68431.0,68422.0,0.079915]
[1730732642820,0.3608,68437.0,68422.0,0.0068]
[1730732643024,0.3608,68437.0,68417.0,0.3608]
[1730732643229,0.073102,68436.0,68428.0,0.073109]
[1730732643724,0.3608,68437.0,68424.0,0.3608]
[1730732644143,0.073099,68438.0,68428.0,0.073108]
[1730732644323,0.3608,68443.0,68436.0,0.073101]
[1730732644324,0.001,68437.0,68436.0,0.073101]
[1730732644523,0.001,68436.0,68428.0,0.003]
[1730732644724,0.074101,68436.0,68428.0,0.076109]
[1730732645152,0.073101,68436.0,68428.0,0.073109]
[1730732645324,0.001,68437.0,68434.0,0.3608]
[1730732645524,0.002,68437.0,68434.0,0.3608]
[1730732645724,0.002,68437.0,68436.0,0.433901]
[1730732645926,0.0073,68462.0,68448.0,0.073088]
[1730732646136,0.2320687,68465.0,68448.0,0.433888]
[1730732646137,0.073077,68459.0,68448.0,0.433888]
[1730732646322,0.073063,68472.0,68448.0,0.872168]
[1730732646323,0.2105687,68472.0,68448.0,0.872168]
[1730732646529,0.2105687,68472.0,68461.0,0.073073]
[1730732646530,0.073072,68464.0,68461.0,0.073073]
[1730732646827,0.2105687,68472.0,68460.0,0.073075]
[1730732647028,0.07307,68465.0,68462.0,0.073072]
[1730732647235,0.2105687,68472.0,68465.0,0.073069]
[1730732647236,0.073066,68469.0,68465.0,0.073069]
[1730732647538,0.073066,68469.0,68457.0,0.0334]
[1730732647724,0.2105687,68472.0,68462.0,0.3608]
[1730732647925,0.073065,68469.0,68466.0,0.073068]
[1730732648828,0.084062,68472.0,68467.0,0.073067]
[1730732649030,0.011,68472.0,68467.0,0.073067]
[1730732649229,0.073064,68470.0,68467.0,0.073067]
[1730732649828,0.07306,68475.0,68467.0,0.073067]
[1730732650024,0.3608,68478.0,68462.0,0.3628]
[1730732650335,0.00136,68484.0,68473.0,0.073061]
[1730732650532,0.3608,68490.0,68473.0,0.073061]
[1730732650733,0.073046,68488.0,68473.0,0.511181]
[1730732651337,0.073047,68486.0,68473.0,0.511181]
[1730732651645,0.433843,68490.0,68473.0,0.511181]
[1730732651842,0.433843,68490.0,68473.0,0.811181]
[1730732652133,0.00136,68501.0,68481.0,0.3608]
[1730732652343,0.00136,68501.0,68500.0,0.073032]
[1730732652530,0.39629069,68511.0,68490.0,0.18128]
[1730732652727,0.3608,68505.0,68490.0,0.073042]
[1730732652933,0.073031,68502.0,68499.0,0.073033]
[1730732653638,0.073031,68502.0,68488.0,0.3608]
[1730732653937,0.3608,68505.0,68502.0,0.07303]
[1730732654435,0.3608,68505.0,68499.0,0.001]
[1730732654436,0.014,68502.0,68501.0,0.073031]
[1730732655040,0.014,68502.0,68497.0,0.073035]
[1730732655244,0.087031,68502.0,68497.0,0.073035]
[1730732656038,0.014,68502.0,68497.0,0.073035]
[1730732656348,0.014,68502.0,68501.0,0.433831]
[1730732656638,0.028,68502.0,68501.0,0.434831]
[1730732657438,0.014,68502.0,68501.0,0.871791]
[1730732657744,0.014,68502.0,68501.0,0.872791]
[1730732657930,0.028,68502.0,68501.0,0.872791]
[1730732658843,0.028,68502.0,68501.0,0.434831]
[1730732660042,0.073022,68510.0,68509.0,0.073023]
[1730732661144,0.00219069,68511.0,68510.0,0.073022]
[1730732661335,0.00219069,68511.0,68510.0,0.510902]
[1730732661643,0.3608,68533.0,68509.0,0.001]
[1730732661644,0.3608,68527.0,68509.0,0.001]
[1730732661840,0.76,68526.0,68509.0,0.001]
[1730732662031,0.833005,68526.0,68510.0,0.073021]
[1730732662342,0.833005,68526.0,68510.0,0.074021]
[1730732662343,0.009,68511.0,68510.0,0.074021]
[1730732664047,0.073014,68517.0,68513.0,0.073018]
[1730732664234,0.073014,68517.0,68510.0,0.001]
[1730732664235,0.073012,68520.0,68514.0,0.073017]
[1730732666148,0.073013,68519.0,68514.0,0.073017]
[1730732666554,0.073013,68519.0,68498.0,0.073034]
[1730732666555,0.073028,68505.0,68498.0,0.073034]
[1730732666737,0.3608,68493.0,68461.0,0.10042532]
[1730732666938,0.32465427,68462.0,68461.0,0.08026938]
[1730732667149,0.3608,68467.0,68461.0,0.00719538]
[1730732667543,0.3608,68467.0,68446.0,0.18116]
[1730732667854,0.32465427,68462.0,68451.0,0.073084]
[1730732668148,0.32565427,68462.0,68461.0,0.01]
[1730732668646,1.08565427,68462.0,68461.0,0.01]
[1730732668942,1.08565427,68462.0,68461.0,0.017]
[1730732669344,0.78208921,68462.0,68461.0,0.00523797]
[1730732669743,1.54494348,68462.0,68435.0,0.3608]
[1730732669946,1.54494348,68462.0,68426.0,0.3608]
[1730732669947,0.32465427,68437.0,68426.0,0.3608]
[1730732670346,0.32465427,68437.0,68432.0,0.3608]
[1730732670646,0.32465427,68437.0,68425.0,0.073112]
[1730732670838,0.32465427,68437.0,68430.0,0.073107]
[1730732671039,0.32465427,68437.0,68425.0,0.3608]
[1730732671234,0.32465427,68437.0,68434.0,0.01619171]
[1730732671447,0.073102,68435.0,68434.0,0.01619171]
[1730732672144,0.073102,68435.0,68434.0,0.02619171]
[1730732672447,0.073102,68435.0,68434.0,0.024]
[1730732672938,0.073102,68435.0,68434.0,0.01]
[1730732673742,0.074102,68435.0,68434.0,0.01]
[1730732674142,0.073105,68432.0,68425.0,0.3608]
[1730732674453,0.075102,68435.0,68425.0,0.3608]
[1730732674656,0.075102,68435.0,68428.0,0.073109]
[1730732674848,0.002,68435.0,68433.0,0.073103]
[1730732675250,0.002,68435.0,68434.0,0.073103]
[1730732675445,0.001,68435.0,68434.0,0.073103]
[1730732675846,0.001,68435.0,68434.0,0.511463]
[1730732676147,0.0207305,68449.0,68434.0,0.43836]
[1730732676355,0.32465427,68452.0,68437.0,0.3608]
[1730732676557,0.073091,68445.0,68440.0,0.073096]
[1730732676950,0.073094,68443.0,68440.0,0.073096]
[1730732677455,0.34536207,68452.0,68437.0,0.3608]
[1730732677665,0.073098,68439.0,68437.0,0.3668]
[1730732677845,0.073099,68438.0,68437.0,0.006]
[1730732678043,0.0207078,68452.0,68437.0,0.3608]
[1730732678246,0.3608,68461.0,68444.0,0.32465427]
[1730732678455,0.073084,68452.0,68447.0,0.073089]
[1730732678761,0.07308,68456.0,68453.0,0.073082]
[1730732678951,0.433882,68454.0,68445.0,0.0339]
[1730732679153,0.07526941,68459.0,68455.0,0.07308]
[1730732679461,0.00219241,68459.0,68458.0,0.433877]
[1730732679649,0.00219241,68459.0,68458.0,0.872117]
[1730732679854,0.073066,68469.0,68466.0,0.073068]
[1730732680056,0.073061,68474.0,68465.0,0.3608]
[1730732680255,0.844646,68488.0,68467.0,0.32465427]
[1730732680256,0.3608,68488.0,68467.0,0.32465427]
[1730732680463,0.3608,68488.0,68471.0,0.3608]
[1730732680464,0.073057,68477.0,68471.0,0.3608]
[1730732680844,0.3608,68488.0,68476.0,0.073058]
[1730732681058,0.073055,68479.0,68476.0,0.073058]
[1730732681265,0.073057,68477.0,68473.0,0.07306]
[1730732681453,0.073054,68481.0,68472.0,0.073061]
[1730732681656,0.073054,68480.0,68476.0,0.073057]
[1730732681962,0.3608,68488.0,68486.0,0.073047]
[1730732682162,0.3608,68488.0,68472.0,0.073062]
[1730732682163,0.073049,68485.0,68478.0,0.073056]
[1730732682457,0.433845,68488.0,68477.0,0.3608]
[1730732682656,0.073048,68486.0,68477.0,0.3608]
[1730732682956,0.001,68481.0,68477.0,0.3608]
[1730732683156,0.001,68481.0,68473.0,0.1952]
[1730732683365,0.001,68481.0,68477.0,0.3608]
[1730732683366,0.073056,68479.0,68477.0,0.3608]
[1730732683572,0.074053,68481.0,68479.0,0.073055]
[1730732683861,0.001,68481.0,68477.0,0.3608]
[1730732684063,0.073055,68479.0,68472.0,0.008]
[1730732684366,0.073059,68475.0,68472.0,0.008]
[1730732684554,0.073054,68480.0,68473.0,0.073061]
[1730732684956,0.3608,68486.0,68479.0,0.005]
[1730732685155,0.073054,68480.0,68479.0,0.005]
[1730732685352,0.433854,68480.0,68479.0,0.005]
[1730732685856,0.433854,68480.0,68459.0,0.22306]
[1730732686059,0.073069,68466.0,68460.0,0.433875]
[1730732686251,0.3608,68472.0,68460.0,0.3608]
[1730732686459,0.76,68471.0,68460.0,0.3608]
[1730732686658,0.073072,68464.0,68460.0,0.3608]
[1730732687771,0.76,68471.0,68460.0,0.3608]
[1730732687954,1.08465427,68471.0,68460.0,0.3608]
[1730732688264,0.073069,68466.0,68460.0,0.433875]
[1730732688951,0.76136,68471.0,68460.0,0.3618]
[1730732689160,0.005,68471.0,68465.0,0.073069]
[1730732689554,0.005,68471.0,68467.0,0.073067]
[1730732689755,0.005,68471.0,68460.0,0.3618]
[1730732689950,0.073052,68482.0,68475.0,0.073058]
[1730732690252,0.073052,68482.0,68476.0,0.073058]
[1730732691054,0.76136,68485.0,68476.0,0.073058]
[1730732691254,0.073056,68479.0,68474.0,0.07306]
[1730732692257,0.07305,68484.0,68474.0,0.07306]
[1730732692459,0.766,68485.0,68474.0,0.07306]
[1730732692460,0.76744,68485.0,68474.0,0.07306]
[1730732692650,0.763,68485.0,68474.0,0.07306]
[1730732692851,0.073056,68479.0,68474.0,0.07606]
[1730732693257,0.073056,68478.0,68474.0,0.07606]
[1730732693461,0.763,68485.0,68474.0,0.006]
[1730732693462,0.3608,68479.0,68474.0,0.006]
[1730732693658,0.073059,68475.0,68474.0,0.006]
[1730732694067,0.511179,68475.0,68474.0,0.006]
[1730732694563,0.073059,68475.0,68474.0,0.006]
[1730732694954,0.073059,68475.0,68474.0,0.003]
[1730732695365,0.073056,68478.0,68474.0,0.003]
[1730732695568,0.01,68475.0,68474.0,0.004]
[1730732695963,0.01,68475.0,68474.0,0.001]
[1730732696159,0.073056,68478.0,68474.0,0.002]
[1730732696353,0.004,68475.0,68474.0,0.002]
[1730732697066,0.073058,68476.0,68474.0,0.002]
[1730732697263,0.073058,68476.0,68473.0,0.073061]
[1730732698070,0.073056,68479.0,68473.0,0.073061]
[1730732698269,0.2105793,68484.0,68476.0,0.073058]
[1730732698566,0.76144,68485.0,68473.0,0.3608]
[1730732698757,1.06,68485.0,68473.0,0.3618]
[1730732698963,1.06,68485.0,68451.0,0.00219101]
[1730732698964,0.073084,68452.0,68451.0,0.00219101]
[1730732699162,0.073094,68442.0,68432.0,0.05775543]
[1730732699363,0.3608,68441.0,68439.0,0.073097]
[1730732699864,0.3608,68441.0,68430.0,0.073107]
[1730732700070,0.3608,68441.0,68431.0,0.073106]
[1730732700365,0.3608,68441.0,68428.0,0.0326]
[1730732700575,0.3608,68441.0,68440.0,0.073096]
[1730732700966,0.3618,68441.0,68440.0,0.073096]
[1730732701265,0.3618,68441.0,68439.0,0.008]
[1730732701572,0.073096,68440.0,68439.0,0.008]
[1730732701764,0.073096,68440.0,68439.0,0.014]
[1730732702281,0.3628,68441.0,68440.0,0.078096]
[1730732702458,0.3628,68441.0,68440.0,0.005]
[1730732702773,0.435895,68441.0,68440.0,0.005]
[1730732702979,0.435895,68441.0,68439.0,0.008]
[1730732702980,0.3608,68441.0,68439.0,0.073097]
[1730732703270,0.001,68440.0,68439.0,0.005]
[1730732703473,0.001,68440.0,68439.0,0.078097]
[1730732703967,0.001,68440.0,68439.0,0.005]
[1730732704169,0.074096,68440.0,68439.0,0.005]
[1730732704373,0.074096,68440.0,68439.0,0.013]
[1730732705372,0.073096,68440.0,68439.0,0.008]
[1730732705873,0.72396,68441.0,68439.0,0.008]
[1730732706072,0.001,68440.0,68439.0,0.014]
[1730732706376,0.073105,68432.0,68421.0,0.0312]
[1730732706578,0.3608,68427.0,68423.0,0.073114]
[1730732706872,0.3608,68427.0,68424.0,0.073113]
[1730732707072,0.3608,68427.0,68421.0,0.0312]
[1730732707572,0.3608,68427.0,68426.0,0.073111]
[1730732708368,0.001,68432.0,68431.0,0.073106]
[1730732708972,0.073111,68427.0,68425.0,0.073112]
[1730732709169,0.001,68432.0,68421.0,0.0312]
[1730732709170,0.3608,68429.0,68421.0,0.0312]
[1730732709377,0.002,68427.0,68421.0,0.0312]
[1730732709576,0.002,68427.0,68424.0,0.073112]
[1730732709577,0.073113,68425.0,68424.0,0.073112]
[1730732709863,0.001,68427.0,68421.0,0.0312]
[1730732710068,0.073114,68424.0,68423.0,0.073115]
[1730732710267,0.073116,68422.0,68421.0,0.0312]
[1730732710490,0.073124,68416.0,68411.0,0.0324]
[1730732710774,0.3608,68414.0,68413.0,0.073125]
[1730732711182,0.3608,68414.0,68413.0,0.511645]
[1730732711867,0.3608,68414.0,68413.0,0.073125]
[1730732712174,0.3608,68422.0,68418.0,0.073118]
[1730732712175,0.07312,68419.0,68418.0,0.073118]
[1730732712579,0.073123,68415.0,68414.0,0.073124]
[1730732712771,0.073123,68415.0,68407.0,0.0324]
[1730732712772,0.073131,68408.0,68407.0,0.0324]
[1730732712978,0.073124,68414.0,68405.0,0.07532567]
[1730732712979,0.073133,68406.0,68405.0,0.07532567]
[1730732713171,0.073133,68406.0,68405.0,0.00219267]
[1730732713669,0.073133,68406.0,68405.0,0.07532667]
[1730732714063,0.073133,68406.0,68405.0,0.44075267]
[1730732714266,0.073133,68406.0,68405.0,0.00219267]
[1730732714473,0.074133,68406.0,68405.0,0.00219267]
[1730732714670,0.074133,68406.0,68405.0,0.07532667]
[1730732715473,0.075133,68406.0,68405.0,0.07532667]
[1730732715866,0.435933,68406.0,68405.0,0.00219267]
[1730732716182,0.435933,68406.0,68405.0,1e-08]
[1730732716387,0.07315,68390.0,68387.0,0.073153]